[Event "29th CRO-chT Junior 2020"]
[Site "Cakovec"]
[Date "2020.07.18"]
[Round "9.11"]
[White "Troselj, Ivan"]
[Black "Dabic, Stjepan"]
[Result "0-1"]
[ECO "B50"]
[WhiteElo "1857"]
[BlackElo "2120"]
[Annotator "ChessBase"]
[PlyCount "114"]
[EventDate "2020.07.14"]
[EventType "team-tourn"]
[EventCountry "CRO"]
[SourceTitle "playchess.com"]
[Source "ChessBase"]
[SourceQuality "1"]
[TimeControl "5400+30"]

1. e4 {[%emt 0:00:30]} c5 {[%emt 0:00:30]} 2. Nf3 {[%emt 0:00:00]} d6 {[%emt 0:00:00]} 3. c3 {[%emt 0:00:00]} Nf6 {[%emt 0:00:00]} 4. h3 {[%emt 0:00:00]} Bd7 {[%emt 0:00:30]} 5. Bd3 {[%emt 0:00:00]} g6 {[%emt 0:00:30]} 6. Bc2 {[%emt 0:00:30]} Bg7 {[%emt 0:00:30]} 7. O-O {[%emt 0:00:00]} O-O {[%emt 0:00:30]} 8. d4 {[%emt 0:01:00]} Nc6 {[%emt 0:03:30]} 9. d5 {[%emt 0:05:30]} Na5 {[%emt 0:03:30]} 10. Nbd2 {[%emt 0:04:30]} Bb5 {[%emt 0:04:30]} 11. Re1 {[%emt 0:00:30]} Nd7 {[%emt 0:00:30]} 12. a4 {[%emt 0:02:30]} Ba6 {[%emt 0:00:30]} 13. Rb1 {[%emt 0:01:30]} c4 {[%emt 0:02:30]} 14. Nd4 {[%emt 0:03:30]} Nc5 {[%emt 0:00:30]} 15. Qg4 {[%emt 0:00:30]} Qd7 {[%emt 0:17:30]} 16. Qh4 {[%emt 0:04:30]} e5 {[%emt 0:05:30]} 17. Ne2 {[%emt 0:09:30]} Nab3 {[%emt 0:01:30]} 18. Nf3 {[%emt 0:05:30]} Nxc1 {[%emt 0:01:30]} 19. Rexc1 {[%emt 0:01:30]} Rab8 {[%emt 0:04:30]} 20. Nh2 {[%emt 0:05:30]} Qd8 {[%emt 0:02:30]} 21. Qg3 {[%emt 0:02:30]} b5 {[%emt 0:02:30]} 22. a5 {[%emt 0:04:30]} Qxa5 {[%emt 0:03:30]} 23. Ng4 {[%emt 0:00:30]} Qd8 {[%emt 0:05:30]} 24. f4 {[%emt 0:01:30]} Nxe4 {[%emt 0:03:30]} 25. Bxe4 {[%emt 0:01:30]} f5 {[%emt 0:00:30]} 26. fxe5 {[%emt 0:00:30]} dxe5 {[%emt 0:00:30]} 27. Nxe5 {[%emt 0:00:30]} Bxe5 {[%emt 0:01:30]} 28. Qxe5 {[%emt 0:00:30]} Re8 {[%emt 0:00:00]} 29. Qg3 {[%emt 0:01:30]} Rxe4 {[%emt 0:00:00]} 30. Nd4 {[%emt 0:00:30]} f4 {[%emt 0:01:30]} 31. Qf3 {[%emt 0:03:30]} Qxd5 {[%emt 0:00:30]} 32. Re1 {[%emt 0:00:30]} Rxe1+ {[%emt 0:02:30]} 33. Rxe1 {[%emt 0:00:30]} Qxf3 {[%emt 0:00:00]} 34. gxf3 {[%emt 0:00:30]} Kf7 {[%emt 0:05:00]} 35. Re4 {[%emt 0:03:30]} g5 {[%emt 0:01:30]} 36. Re5 {[%emt 0:00:30]} h6 {[%emt 0:00:30]} 37. Rc5 {[%emt 0:01:30]} Rc8 {[%emt 0:01:30]} 38. Rf5+ {[%emt 0:00:30]} Kg6 {[%emt 0:01:30]} 39. Re5 {[%emt 0:00:30]} Rf8 {[%emt 0:01:30]} 40. Re7 {[%emt 0:05:30]} Rf7 {[%emt 0:01:30]} 41. Re6+ {[%emt 0:00:30]} Rf6 {[%emt 0:00:30]} 42. Re7 {[%emt 0:00:00]} Bc8 {[%emt 0:00:30]} 43. Rxa7 {[%emt 0:02:00]} Bxh3 {[%emt 0:00:00]} 44. Rb7 {[%emt 0:00:30]} h5 {[%emt 0:00:00]} 45. Rxb5 {[%emt 0:00:30]} g4 {[%emt 0:00:30]} 46. Rd5 {[%emt 0:04:30]} g3 {[%emt 0:02:30]} 47. Ne2 {[%emt 0:00:00]} Be6 {[%emt 0:00:30]} 48. Re5 {[%emt 0:00:00]} h4 {[%emt 0:03:30]} 49. Nxf4+ {[%emt 0:02:30]} Rxf4 {[%emt 0:00:00]} 50. Rxe6+ {[%emt 0:00:30]} Kf5 {[%emt 0:00:00]} 51. Rh6 {[%emt 0:00:30]} Kg5 {[%emt 0:00:00]} 52. Rc6 {[%emt 0:03:30]} Rxf3 {[%emt 0:00:00]} 53. Rxc4 {[%emt 0:00:30]} h3 {[%emt 0:00:30]} 54. Rc5+ {[%emt 0:00:30]} Kg4 {[%emt 0:00:30]} 55. Rc4+ {[%emt 0:00:30]} Rf4 {[%emt 0:00:30]} 56. Rxf4+ {[%emt 0:00:30]} Kxf4 {[%emt 0:00:30]} 57. b4 {[%emt 0:00:30]} Kf3 {[%emt 0:00:00]} 0-1

[Event "29th CRO-chT Junior 2020"]
[Site "Cakovec"]
[Date "2020.07.18"]
[Round "9.12"]
[White "Purini, Bruno"]
[Black "Zekic, Patrik"]
[Result "1/2-1/2"]
[ECO "C00"]
[WhiteElo "2017"]
[BlackElo "1699"]
[Annotator "NA"]
[PlyCount "143"]
[EventDate "2020.07.14"]
[EventType "team-tourn"]
[EventCountry "CRO"]
[SourceTitle "playchess.com"]
[Source "ChessBase"]
[SourceQuality "1"]
[TimeControl "5400+30"]

1. e4 {[%emt 0:00:30]} e6 {[%emt 0:00:30]} 2. d3 {[%emt 0:00:00]} d5 {[%emt 0:00:00]} 3. Nd2 {[%emt 0:00:00]} Nf6 {[%emt 0:01:00]} 4. Ngf3 {[%emt 0:00:00]} c5 {[%emt 0:01:30]} 5. g3 {[%emt 0:00:00]} b6 {[%emt 0:03:30]} 6. Bg2 {[%emt 0:00:30]} Bb7 {[%emt 0:00:30]} 7. O-O {[%emt 0:01:30]} Be7 {[%emt 0:01:30]} 8. e5 {[%emt 0:01:30]} Nfd7 {[%emt 0:01:30]} 9. Qe2 {[%emt 0:00:00]} Nc6 {[%emt 0:00:30]} 10. Re1 {[%emt 0:00:00]} g5 {[%emt 0:24:30] C00: French: Unusual White 2nd moves.} 11. h3 {[%emt 0:07:30]} Qc7 {[%emt 0:04:30]} 12. c4 {[%emt 0:06:30]} d4 {[%emt 0:07:30]} 13. a3 {[%emt 0:01:30] [#]} O-O-O $146 {[%emt 0:08:30]} ({Predecessor:} 13... h6 14. Rb1 O-O-O 15. Nf1 Rhg8 16. g4 Bf8 17. Ng3 Bg7 18. b4 cxb4 19. axb4 Ndxe5 {0-1 (83) Page,M (2139)-Schulz,K (2324) Dresden 2018}) 14. b4 {[%emt 0:13:30]} cxb4 {[%emt 0:11:30]} (14... h6 $11 {keeps the balance.}) 15. axb4 {[%emt 0:01:30]} Bxb4 {[%emt 0:00:30]} 16. Ba3 {[%emt 0:05:30]} a5 {[%emt 0:02:30]} 17. Bxb4 {[%emt 0:05:30]} ({But not} 17. Nxg5 Bxa3 18. Rxa3 Ndxe5 $11) 17... Nxb4 {[%emt 0:03:30]} 18. Nxd4 {[%emt 0:02:30]} Bxg2 {[%emt 0:12:23]} 19. Nb5 {[%emt 0:09:30]} Qxe5 {[%emt 0:01:29]} 20. Qxe5 {[%emt 0:03:30]} Nxe5 {[%emt 0:00:14]} 21. Rxe5 {[%emt 0:00:00]} Nxd3 {[%emt 0:04:10]} 22. Rxg5 {[%emt 0:02:00]} Nxf2 {[%emt 0:07:06]} 23. Kxf2 {[%emt 0:03:30]} Rxd2+ {[%emt 0:00:09]} 24. Ke3 {[%emt 0:00:30]} Rd7 {[%emt 0:02:08]} 25. c5 {[%emt 0:00:30]} bxc5 {[%emt 0:00:45]} 26. Rxc5+ {[%emt 0:00:30]} Kd8 {[%emt 0:00:23]} 27. Rxa5 {[%emt 0:00:30]} Ke7 {[%emt 0:00:18]} 28. h4 {[%emt 0:00:30]} Bd5 {[%emt 0:00:47]} 29. Nc3 {[%emt 0:00:30]} Rg8 {[%emt 0:00:35]} 30. Kf4 {[%emt 0:01:30]} (30. Nxd5+ $11 exd5 31. Rxd5) 30... Bb7 {[%emt 0:00:31]} 31. Ne2 {[%emt 0:02:30]} f6 {[%emt 0:00:29]} 32. Rc3 {[%emt 0:01:30]} Bd5 {[%emt 0:00:30]} 33. Rac5 {[%emt 0:04:30]} Rb8 $17 {[%emt 0:00:31]} 34. g4 {[%emt 0:01:30]} Rb2 {[%emt 0:00:30]} 35. Rc2 {[%emt 0:00:30]} Rxc2 {[%emt 0:00:32]} 36. Rxc2 {[%emt 0:00:30]} e5+ {[%emt 0:00:06]} 37. Kg3 {[%emt 0:01:30]} Be6 {[%emt 0:00:31]} 38. Rc3 {[%emt 0:00:30]} Rb7 {[%emt 0:00:05]} 39. g5 {[%emt 0:02:30]} Rb3 {[%emt 0:01:13]} 40. Rxb3 {[%emt 0:04:04]} Bxb3 {[%emt 0:00:00]} 41. gxf6+ {[%emt 0:01:05]} Kxf6 {[%emt 0:00:06]} 42. Nc3 {[%emt 0:00:30]} Kf5 {[%emt 0:00:30]} 43. Nb5 {[%emt 0:00:30]} Ke4 {[%emt 0:00:30]} 44. Nd6+ {[%emt 0:00:30]} Kd3 {[%emt 0:00:30]} 45. Kf2 {[%emt 0:00:00]} e4 {[%emt 0:01:25]} 46. Nf5 {[%emt 0:00:00]} Be6 {[%emt 0:00:25]} 47. Ne3 {[%emt 0:00:21]} Kd2 {[%emt 0:00:30]} 48. Ng2 {[%emt 0:00:30]} Bh3 {[%emt 0:00:34]} 49. Ne3 {[%emt 0:00:30]} Be6 {[%emt 0:00:30]} 50. Nf1+ {[%emt 0:00:30]} Kd3 {[%emt 0:00:30]} 51. Ne3 {[%emt 0:00:30]} Kc3 {[%emt 0:00:30]} 52. Kg3 {[%emt 0:00:30]} Kd3 {[%emt 0:00:30]} 53. Kf2 {[%emt 0:00:30]} Bh3 {[%emt 0:00:30]} 54. Nd1 {[%emt 0:00:30]} Be6 {[%emt 0:00:30]} 55. Ne3 {[%emt 0:00:30]} Kd2 {[%emt 0:00:29]} 56. Ng2 {[%emt 0:00:00]} Bh3 {[%emt 0:00:12]} 57. Ne3 {[%emt 0:00:00]} Kd3 {[%emt 0:00:51]} 58. Nd1 {[%emt 0:00:30]} Kd4 {[%emt 0:00:24]} 59. Ne3 {[%emt 0:01:30]} Ke5 {[%emt 0:00:18]} 60. Kg3 {[%emt 0:00:00]} Be6 {[%emt 0:00:37]} 61. Ng2 {[%emt 0:01:13]} Kd4 {[%emt 0:00:42]} 62. Kf2 {[%emt 0:00:17]} Bh3 {[%emt 0:00:32]} 63. Ne3 {[%emt 0:00:30]} h6 {[%emt 0:00:27]} 64. Nd1 {[%emt 0:00:30]} Kd3 {[%emt 0:00:31]} 65. Ne3 {[%emt 0:00:00]} Kd4 {[%emt 0:00:30]} 66. Nd1 {[%emt 0:00:00]} Ke5 {[%emt 0:00:29]} 67. Kg3 {[%emt 0:00:30]} Bd7 {[%emt 0:00:23]} 68. Ne3 {[%emt 0:00:30]} Be6 {[%emt 0:00:19]} 69. Ng2 {[%emt 0:00:30]} Kd4 {[%emt 0:00:43]} 70. Kf2 {[%emt 0:00:00]} Bh3 {[%emt 0:00:37]} 71. Ne3 {[%emt 0:00:00]} Ke5 {[%emt 0:00:29]} 72. Kg3 {[%emt 0:00:30]} 1/2-1/2

[Event "29th CRO-chT Junior 2020"]
[Site "Cakovec"]
[Date "2020.07.18"]
[Round "9.13"]
[White "Karlovcec, David"]
[Black "Alfirevic, Duje"]
[Result "0-1"]
[ECO "D00"]
[WhiteElo "1655"]
[BlackElo "2011"]
[Annotator "NA"]
[PlyCount "88"]
[EventDate "2020.07.14"]
[EventType "team-tourn"]
[EventCountry "CRO"]
[SourceTitle "playchess.com"]
[Source "ChessBase"]
[SourceQuality "1"]
[TimeControl "5400+30"]

1. d4 {[%emt 0:00:30]} d5 {[%emt 0:00:30]} 2. Bf4 {[%emt 0:00:00]} Nf6 {[%emt 0:00:30]} 3. e3 {[%emt 0:00:00]} c5 {[%emt 0:04:30]} 4. c3 {[%emt 0:01:30]} Nc6 {[%emt 0:00:30]} 5. Bd3 {[%emt 0:03:30]} Bg4 {[%emt 0:09:30]} 6. Qc2 {[%emt 0:05:30] D00: 1 d4 d5: Unusual lines.} e6 {[%emt 0:00:30] [#]} 7. Nd2 $146 {[%emt 0:00:30]} ({Predecessor:} 7. h3 Bh5 8. Nd2 Rc8 9. Ngf3 cxd4 10. exd4 Bd6 11. Bxd6 Qxd6 12. O-O O-O 13. Rfe1 {0-1 (62) Geiger,A (1686)-Vrajitoru,V (1867) Voineasa 2010}) 7... Be7 {[%emt 0:01:30]} 8. Ngf3 {[%emt 0:01:30]} c4 {[%emt 0:05:30]} 9. Be2 {[%emt 0:00:30]} Bf5 {[%emt 0:00:30]} 10. Qc1 {[%emt 0:07:30]} h6 {[%emt 0:06:30]} 11. O-O {[%emt 0:01:30]} O-O {[%emt 0:00:30]} 12. Bd1 {[%emt 0:01:30]} Nh5 {[%emt 0:18:30]} 13. Bg3 {[%emt 0:09:30]} Nxg3 {[%emt 0:00:30]} 14. hxg3 {[%emt 0:02:30]} b5 {[%emt 0:00:30]} (14... Bd3 $5 15. Re1 $8 f5 $11) 15. Bc2 {[%emt 0:01:30]} Bxc2 {[%emt 0:00:30]} 16. Qxc2 {[%emt 0:00:00]} f5 {[%emt 0:00:30]} 17. Ne5 {[%emt 0:11:00]} Nxe5 {[%emt 0:02:30]} 18. dxe5 {[%emt 0:00:30]} Bc5 {[%emt 0:00:30]} 19. Rfe1 {[%emt 0:07:30]} Qc7 {[%emt 0:08:30]} 20. f4 {[%emt 0:01:30]} Qb6 {[%emt 0:03:30]} 21. Kf2 {[%emt 0:01:30]} a5 {[%emt 0:01:30]} 22. Nf3 {[%emt 0:01:30]} b4 {[%emt 0:01:30]} 23. Nd4 {[%emt 0:00:30]} Bxd4 {[%emt 0:01:30]} 24. exd4 {[%emt 0:00:30]} a4 {[%emt 0:02:30]} 25. Reb1 {[%emt 0:04:30]} b3 {[%emt 0:05:30]} 26. axb3 {[%emt 0:04:30]} axb3 {[%emt 0:01:30]} 27. Qd1 {[%emt 0:00:30]} Ra2 {[%emt 0:01:30]} 28. Qc1 {[%emt 0:10:30]} Rfa8 {[%emt 0:00:30]} 29. Ke2 {[%emt 0:02:30]} Qa5 {[%emt 0:00:30]} 30. Rxa2 {[%emt 0:00:30]} bxa2 {[%emt 0:00:30]} 31. Ra1 {[%emt 0:00:30]} Qa4 {[%emt 0:00:30]} 32. Kd2 {[%emt 0:02:12]} Qb3 {[%emt 0:00:30]} 33. Qc2 {[%emt 0:01:11]} Rb8 {[%emt 0:01:30]} 34. Kc1 {[%emt 0:02:16]} Rb7 {[%emt 0:01:30]} 35. Qe2 {[%emt 0:02:16]} g5 $19 {[%emt 0:04:24]} 36. Qf2 {[%emt 0:09:42]} gxf4 {[%emt 0:02:06]} 37. gxf4 {[%emt 0:00:31]} Rg7 {[%emt 0:00:17]} 38. g3 {[%emt 0:02:01]} Kh7 {[%emt 0:02:30]} 39. Qh2 {[%emt 0:00:48]} Rg4 {[%emt 0:00:58]} 40. Qh3 {[%emt 0:01:12]} Qa4 {[%emt 0:00:24]} 41. Qh2 {[%emt 0:01:32]} Qa7 {[%emt 0:00:48]} 42. Kd2 {[%emt 0:00:48]} Qg7 {[%emt 0:02:59]} 43. Rxa2 {[%emt 0:00:49]} Rxg3 {[%emt 0:00:13]} 44. Ra7 {[%emt 0:00:27]} Rd3+ {[%emt 0:00:09]} 0-1

[Event "29th CRO-chT Junior 2020"]
[Site "Cakovec"]
[Date "2020.07.18"]
[Round "9.14"]
[White "Dumancic, Simun"]
[Black "Stampar, Jakov"]
[Result "1-0"]
[ECO "B13"]
[WhiteElo "1896"]
[BlackElo "1465"]
[Annotator "NA"]
[PlyCount "43"]
[EventDate "2020.07.14"]
[EventType "team-tourn"]
[EventCountry "CRO"]
[SourceTitle "playchess.com"]
[Source "ChessBase"]
[SourceQuality "1"]
[TimeControl "5400+30"]

{[%evp 12,43,118,127,386,376,381,425,384,394,32767,32767,32767,32767,32767,32767,32767,32767,32767,32767,32767,32767,32767,593,650,681,653,528,839,704,32767,32767,910,566]} 1. e4 {[%emt 0:00:30]} c6 {[%emt 0:00:30]} 2. d4 {[%emt 0:00:30]} d5 {[%emt 0:00:30]} 3. exd5 {[%emt 0:01:30]} cxd5 {[%emt 0:00:00]} 4. c4 {[%emt 0:00:00]} Bf5 {[%emt 0:04:00]} 5. Nc3 {[%emt 0:00:00]} Nf6 {[%emt 0:01:30]} 6. Qb3 {[%emt 0:01:30]} Nc6 {[%emt 0:07:30] B13: Caro-Kann: Exchange Variation and Panov-Botvinnik Attack.} 7. cxd5 {[%emt 0:01:30]} Nxd4 $2 {[%emt 0:07:30]} (7... Na5 $16 8. Qa4+ Bd7) 8. Qa4+ {[%emt 0:00:30] Double Attack [#]} b5 $146 {[%emt 0:00:30]} ({Predecessor:} 8... Qd7 9. Qxd4 a6 10. Nf3 Rd8 11. Bc4 e6 12. Bg5 Be7 13. Rd1 Qc7 14. O-O O-O 15. Bf4 Bd6 16. Bxd6 Rxd6 17. Bb3 Rfd8 18. Qe5 Ng4 19. Qg3 {1-0 (19) Matras Clement,A (2234)-Pretell Diaz,C (1824) Ottawa 2016}) 9. Qxd4 {[%emt 0:00:30]} a6 {[%emt 0:07:30]} 10. Bg5 {[%emt 0:02:30]} Rc8 {[%emt 0:05:30]} 11. Bd3 {[%emt 0:02:30]} Bxd3 {[%emt 0:05:30]} 12. Qxd3 {[%emt 0:00:30]} Nd7 {[%emt 0:07:30]} 13. Nf3 {[%emt 0:03:30]} Nc5 {[%emt 0:04:30]} 14. Qd4 {[%emt 0:02:30]} f6 {[%emt 0:03:30]} 15. Be3 {[%emt 0:01:30]} e5 {[%emt 0:01:30]} 16. dxe6 {[%emt 0:06:30]} Qxd4 {[%emt 0:00:30]} 17. Nxd4 {[%emt 0:01:30]} Nd3+ {[%emt 0:00:00]} 18. Ke2 {[%emt 0:00:30]} Nxb2 {[%emt 0:00:00]} 19. Ne4 {[%emt 0:01:30]} Be7 {[%emt 0:03:30]} (19... Ba3 $142 20. Nf5 O-O) 20. Rac1 {[%emt 0:00:30]} Nc4 {[%emt 0:13:30]} 21. Nf5 {[%emt 0:00:30]} Ba3 {[%emt 0:02:30]} 22. Rxc4 $18 {[%emt 0:01:30]} 1-0

[Event "29th CRO-chT Junior 2020"]
[Site "Cakovec"]
[Date "2020.07.18"]
[Round "9.15"]
[White "Vuk, Sebastijan"]
[Black "Sagovac, Kristijan"]
[Result "0-1"]
[ECO "B31"]
[WhiteElo "1382"]
[BlackElo "1839"]
[Annotator "NA RC"]
[PlyCount "52"]
[EventDate "2020.07.14"]
[EventType "team-tourn"]
[EventCountry "CRO"]
[SourceTitle "playchess.com"]
[Source "ChessBase"]
[SourceQuality "1"]
[TimeControl "5400+30"]

1. e4 {[%emt 0:00:30]} c5 {[%emt 0:00:30]} 2. Nf3 {[%emt 0:00:00]} Nc6 {[%emt 0:00:00]} 3. Bb5 {[%emt 0:00:00]} g6 {[%emt 0:00:00]} 4. O-O {[%emt 0:00:30]} Bg7 {[%emt 0:00:00]} 5. Bxc6 {[%emt 0:00:30]} dxc6 {[%emt 0:00:00]} 6. Nc3 {[%emt 0:01:30]} Nf6 {[%emt 0:01:30]} 7. d3 {[%emt 0:01:30]} O-O {[%emt 0:00:30]} 8. Be3 {[%emt 0:01:30]} b6 {[%emt 0:00:30]} 9. Nd2 {[%emt 0:02:30]} e5 {[%emt 0:00:30]} 10. f4 {[%emt 0:03:30]} (10. Bg5 $11 {keeps the balance.}) 10... exf4 {[%emt 0:00:30]} 11. Bxf4 {[%emt 0:00:30]} Ng4 {[%emt 0:03:30]} 12. Qf3 {[%emt 0:12:30]} (12. Qe2 $15) 12... Bd4+ {[%emt 0:01:30]} 13. Kh1 {[%emt 0:00:30] [#]} g5 $1 {[%emt 0:04:30]} 14. Bg3 {[%emt 0:14:30]} Ne3 {[%emt 0:00:30]} 15. h3 {[%emt 0:15:30]} Nxf1 {[%emt 0:02:30]} 16. Rxf1 {[%emt 0:00:30] [#]} g4 $1 {[%emt 0:13:30]} 17. Qf4 {[%emt 0:08:30]} Kh8 {[%emt 0:12:30]} ({Black should play} 17... gxh3 $17 18. gxh3 Qd7) 18. Qh6 $19 {[%emt 0:04:30]} (18. e5 $15) 18... Bg7 {[%emt 0:11:30]} 19. Qxc6 {[%emt 0:10:47]} gxh3 {[%emt 0:00:30]} 20. Qxa8 {[%emt 0:01:26]} hxg2+ {[%emt 0:00:30]} 21. Kxg2 {[%emt 0:00:15]} Bh3+ {[%emt 0:00:30]} 22. Kxh3 {[%emt 0:00:26]} Qxa8 {[%emt 0:00:00]} 23. Bd6 {[%emt 0:03:24]} Rg8 {[%emt 0:04:00]} 24. Rxf7 {[%emt 0:00:44]} Qc6 {[%emt 0:02:30]} 25. Bf4 {[%emt 0:02:43]} Qg6 {[%emt 0:01:30]} 26. Rf5 {[%emt 0:03:31]} Bxc3 {[%emt 0:00:00]} 0-1

[Event "29th CRO-chT Junior 2020"]
[Site "Cakovec"]
[Date "2020.07.18"]
[Round "9.16"]
[White "Martic, Filip"]
[Black "Kristofic, Dino"]
[Result "1-0"]
[ECO "D93"]
[WhiteElo "1656"]
[BlackElo "1290"]
[Annotator "NA RC"]
[PlyCount "43"]
[EventDate "2020.07.14"]
[EventType "team-tourn"]
[EventCountry "CRO"]
[SourceTitle "playchess.com"]
[Source "ChessBase"]
[SourceQuality "1"]
[TimeControl "5400+30"]

1. d4 {[%emt 0:00:30]} Nf6 {[%emt 0:00:30]} 2. Nf3 {[%emt 0:00:00]} d5 {[%emt 0:00:30]} 3. c4 {[%emt 0:00:00]} dxc4 {[%emt 0:00:30]} 4. Nc3 {[%emt 0:00:30]} g6 {[%emt 0:02:30]} 5. Bf4 {[%emt 0:03:30]} Bg7 {[%emt 0:01:30]} 6. e3 {[%emt 0:00:00]} O-O {[%emt 0:04:30]} 7. Bxc4 {[%emt 0:01:00]} Bf5 {[%emt 0:03:30]} 8. Qb3 {[%emt 0:05:30]} b6 {[%emt 0:04:30]} 9. Ne5 {[%emt 0:00:30]} Qe8 {[%emt 0:08:30]} 10. O-O {[%emt 0:06:30]} c6 {[%emt 0:07:30]} 11. a4 {[%emt 0:03:30]} Bd7 {[%emt 0:08:30]} 12. h3 {[%emt 0:08:30]} e6 {[%emt 0:02:30]} 13. Rad1 {[%emt 0:02:30]} Qe7 {[%emt 0:06:30]} 14. Rfe1 {[%emt 0:01:30]} Rd8 {[%emt 0:10:30]} 15. e4 {[%emt 0:01:30]} Be8 {[%emt 0:08:30]} 16. d5 {[%emt 0:00:30]} exd5 {[%emt 0:01:30]} 17. exd5 {[%emt 0:00:30]} cxd5 {[%emt 0:01:30]} 18. Nxd5 {[%emt 0:00:30]} Qc5 {[%emt 0:01:30]} 19. Nxf6+ {[%emt 0:00:30]} Bxf6 {[%emt 0:00:30]} 20. Rxd8 {[%emt 0:00:30]} Bxd8 {[%emt 0:00:30]} 21. Bxf7+ {[%emt 0:00:30]} Bxf7 {[%emt 0:01:30]} 22. Qxf7+ {[%emt 0:00:30]} 1-0

[Event "29th CRO-chT Junior 2020"]
[Site "Cakovec"]
[Date "2020.07.18"]
[Round "9.20"]
[White "Colev, Ivor"]
[Black "Kresic, Vid"]
[Result "1-0"]
[ECO "C70"]
[WhiteElo "1893"]
[BlackElo "1216"]
[Annotator "NA RC"]
[PlyCount "75"]
[EventDate "2020.07.14"]
[EventType "team-tourn"]
[EventCountry "CRO"]
[SourceTitle "playchess.com"]
[Source "ChessBase"]
[SourceQuality "1"]
[TimeControl "5400+30"]

1. e4 {[%emt 0:00:30]} e5 {[%emt 0:00:30]} 2. Nf3 {[%emt 0:00:00]} Nc6 {[%emt 0:00:00]} 3. Bb5 {[%emt 0:00:00]} Bc5 {[%emt 0:00:00]} 4. c3 {[%emt 0:00:00]} a6 {[%emt 0:03:30]} 5. Ba4 {[%emt 0:00:00]} Nge7 {[%emt 0:00:30]} 6. d4 {[%emt 0:01:30] C70: Ruy Lopez: 3...a6 4 Ba4, Norwegian and Delayed Schliemann.} exd4 {[%emt 0:00:30]} 7. cxd4 {[%emt 0:00:00]} Ba7 {[%emt 0:00:30]} 8. d5 {[%emt 0:02:00] [#]} Na5 $146 {[%emt 0:03:30]} ({Predecessor:} 8... Nb8 9. d6 Ng6 10. Bb3 cxd6 11. O-O O-O 12. Ng5 h6 13. Qh5 Ne5 14. Nh3 Nbc6 15. Bg5 Qa5 16. Nc3 Nd4 17. Nd5 Ne6 18. Be7 Re8 19. Bxd6 Ng6 20. Nf6+ {1-0 (20) Sant'Ana,R (2114)-Andrade,L (2077) Rio de Janeiro 1999}) 9. Bd2 {[%emt 0:06:30]} Nc4 {[%emt 0:02:30]} 10. Bc3 {[%emt 0:00:30]} b5 {[%emt 0:00:30]} 11. Bc2 {[%emt 0:00:30]} Bb7 {[%emt 0:01:30]} (11... d6 $142) 12. b3 {[%emt 0:01:30]} Nb6 {[%emt 0:00:30]} (12... Nd6 $16) 13. O-O {[%emt 0:00:30]} ({White should play} 13. Bxg7 $18 Rg8 14. Bb2) 13... O-O {[%emt 0:00:30]} 14. Qd4 {[%emt 0:02:30]} (14. a4 $16) 14... f6 {[%emt 0:00:30]} 15. Qd3 {[%emt 0:00:30]} Ng6 {[%emt 0:00:30]} (15... f5 $5) 16. h4 {[%emt 0:09:30]} d6 {[%emt 0:01:30]} 17. Qd1 {[%emt 0:07:30]} Ne5 {[%emt 0:00:30]} 18. Nbd2 {[%emt 0:00:00]} Nbd7 {[%emt 0:01:30]} 19. Bd4 {[%emt 0:02:00]} Qe7 {[%emt 0:01:30]} 20. Bxa7 {[%emt 0:00:30]} Rxa7 {[%emt 0:00:30]} 21. Nd4 {[%emt 0:00:30]} Nc5 {[%emt 0:00:30]} 22. b4 {[%emt 0:02:30]} Ncd7 {[%emt 0:01:30]} 23. Ne6 {[%emt 0:02:30]} Rc8 {[%emt 0:00:30]} 24. Nb3 {[%emt 0:00:30]} c5 {[%emt 0:00:30]} 25. f4 {[%emt 0:07:30]} c4 {[%emt 0:03:30]} 26. Nbd4 {[%emt 0:00:30]} Ng6 {[%emt 0:00:30]} 27. Nf5 {[%emt 0:00:30]} Qf7 {[%emt 0:01:30]} 28. Nxd6 {[%emt 0:02:30]} Qe7 {[%emt 0:00:30]} 29. Nf5 {[%emt 0:00:30]} Qxb4 {[%emt 0:01:30]} 30. h5 {[%emt 0:00:00]} Ngf8 {[%emt 0:00:30] [#]} 31. Qg4 $1 {[%emt 0:02:00]} g6 {[%emt 0:00:30]} 32. hxg6 {[%emt 0:05:30]} hxg6 {[%emt 0:01:30]} 33. Nh4 {[%emt 0:02:30]} Kf7 {[%emt 0:01:30]} 34. e5 {[%emt 0:05:30]} (34. Rad1 $142) 34... f5 $18 {[%emt 0:00:30] [#]} (34... Bxd5 35. Nxf8 (35. Bxg6+ Nxg6 36. Rad1 Bxe6 $14) 35... Rxf8) 35. Bxf5 $1 {[%emt 0:03:30]} gxf5 {[%emt 0:00:30]} 36. Qxf5+ {[%emt 0:00:30]} (36. Qg7+ $142 Ke8 37. d6 Qc5+ 38. Nxc5 Ng6 39. Nxg6 Nxc5 40. Qe7#) 36... Ke8 {[%emt 0:00:30]} 37. Qh5+ {[%emt 0:00:30]} Ke7 {[%emt 0:00:30]} 38. Nf5# {[%emt 0:00:30]} 1-0